[Event "*** Titled Tuesday Blitz"]
[Site "Chess.com"]
[Date "2021.02.02"]
[Round "7"]
[White "rachidhuilda"]
[Black "MasterSonnevanck23"]
[Result "1/2-1/2"]
[WhiteElo "2226"]
[BlackElo "2373"]
[TimeControl "180+1"]
[EndTime "11:20:09 PST"]
[Termination "Game drawn - insufficient material"]

1. d4 {[%clk 0:03:00.9]} 1... Nf6 {[%clk 0:02:59.2]} 2. Bg5 {[%clk 0:02:56]}
2... Ne4 {[%clk 0:02:57.6]} 3. Bf4 {[%clk 0:02:55.7]} 3... c5 {[%clk 0:02:57.6]}
4. f3 {[%clk 0:02:55.1]} 4... Nf6 {[%clk 0:02:57.4]} 5. dxc5 {[%clk 0:02:54.3]}
5... b6 {[%clk 0:02:55]} 6. e4 {[%clk 0:02:51.1]} 6... bxc5 {[%clk 0:02:54.7]}
7. e5 {[%clk 0:02:44.3]} 7... Qc7 {[%clk 0:02:53.7]} 8. Nc3 {[%clk 0:02:12.4]}
8... Nc6 {[%clk 0:02:49.5]} 9. Nd5 {[%clk 0:01:58.1]} 9... Nxd5 {[%clk
0:02:47.2]} 10. Qxd5 {[%clk 0:01:58.6]} 10... Bb7 {[%clk 0:02:09.5]} 11. Qxc5
{[%clk 0:01:41.2]} 11... e6 {[%clk 0:02:03]} 12. Qc4 {[%clk 0:01:34.2]} 12... g5
{[%clk 0:01:45.7]} 13. Bg3 {[%clk 0:01:28.2]} 13... Bg7 {[%clk 0:01:40.5]} 14.
Bd3 {[%clk 0:01:23.6]} 14... h5 {[%clk 0:01:29.2]} 15. h4 {[%clk 0:01:22.7]}
15... Bxe5 {[%clk 0:01:28.8]} 16. Bxe5 {[%clk 0:01:12.6]} 16... Qxe5+ {[%clk
0:01:28.6]} 17. Ne2 {[%clk 0:01:08.1]} 17... gxh4 {[%clk 0:01:27]} 18. O-O-O
{[%clk 0:00:55.7]} 18... O-O-O {[%clk 0:01:17.8]} 19. Rxh4 {[%clk 0:00:53.9]}
19... Qg5+ {[%clk 0:01:17]} 20. Qf4 {[%clk 0:00:50.5]} 20... Rdg8 {[%clk
0:00:48.5]} 21. Rdh1 {[%clk 0:00:42.1]} 21... Ne5 {[%clk 0:00:38.4]} 22. Qxg5
{[%clk 0:00:38.5]} 22... Nxd3+ {[%clk 0:00:34.7]} 23. cxd3 {[%clk 0:00:38.2]}
23... Rxg5 {[%clk 0:00:34.6]} 24. Nf4 {[%clk 0:00:23.1]} 24... e5 {[%clk
0:00:34.7]} 25. Rxh5 {[%clk 0:00:23.1]} 25... Rhxh5 {[%clk 0:00:26.3]} 26. Rxh5
{[%clk 0:00:24]} 26... f6 {[%clk 0:00:22.4]} 27. Rxg5 {[%clk 0:00:23.9]} 27...
fxg5 {[%clk 0:00:22.6]} 28. Ng6 {[%clk 0:00:20.5]} 28... d6 {[%clk 0:00:21.3]}
29. Kd2 {[%clk 0:00:21]} 29... g4 {[%clk 0:00:19.9]} 30. fxg4 {[%clk 0:00:19.7]}
30... Bxg2 {[%clk 0:00:19.2]} 31. Nh4 {[%clk 0:00:19.2]} 31... Bd5 {[%clk
0:00:18]} 32. a3 {[%clk 0:00:19.7]} 32... Kd7 {[%clk 0:00:18.1]} 33. Ke3 {[%clk
0:00:19.3]} 33... Ke6 {[%clk 0:00:17.1]} 34. Nf5 {[%clk 0:00:19.3]} 34... Bb3
{[%clk 0:00:13.8]} 35. Ng3 {[%clk 0:00:17.8]} 35... d5 {[%clk 0:00:13.4]} 36.
Nf5 {[%clk 0:00:17.6]} 36... d4+ {[%clk 0:00:13.1]} 37. Kd2 {[%clk 0:00:17.5]}
37... Kf6 {[%clk 0:00:09.9]} 38. Ke2 {[%clk 0:00:17.5]} 38... Kg5 {[%clk
0:00:10.1]} 39. Kf3 {[%clk 0:00:18.1]} 39... Bd5+ {[%clk 0:00:09.8]} 40. Kg3
{[%clk 0:00:18.3]} 40... Be6 {[%clk 0:00:09.9]} 41. Ne7 {[%clk 0:00:09.1]} 41...
Bxg4 {[%clk 0:00:08.6]} 42. Nc6 {[%clk 0:00:09.7]} 42... Be2 {[%clk 0:00:07.6]}
43. Nxe5 {[%clk 0:00:08.8]} 43... Kf5 {[%clk 0:00:07.4]} 44. Nc6 {[%clk
0:00:09.1]} 44... Bxd3 {[%clk 0:00:07.1]} 45. Nxd4+ {[%clk 0:00:09.6]} 45... Ke4
{[%clk 0:00:06.9]} 46. Nc6 {[%clk 0:00:09.7]} 46... a6 {[%clk 0:00:06.5]} 47.
Kf2 {[%clk 0:00:10.3]} 47... Bb5 {[%clk 0:00:05.5]} 48. Nb4 {[%clk 0:00:09.8]}
48... a5 {[%clk 0:00:05.3]} 49. Nc2 {[%clk 0:00:09.9]} 49... Kd3 {[%clk
0:00:05.3]} 50. Ne3 {[%clk 0:00:09.9]} 50... Kd2 {[%clk 0:00:04.7]} 51. b4
{[%clk 0:00:08.4]} 51... axb4 {[%clk 0:00:04.2]} 52. axb4 {[%clk 0:00:07.8]}
52... Kc3 {[%clk 0:00:04.4]} 53. Nd5+ {[%clk 0:00:08]} 53... Kb3 {[%clk
0:00:04.5]} 54. Ke3 {[%clk 0:00:07.8]} 54... Bc6 {[%clk 0:00:04.6]} 55. Ne7
{[%clk 0:00:06.8]} 55... Kxb4 {[%clk 0:00:04.3]} 1/2-1/2

[Event "*** Titled Tuesday Blitz"]
[Site "Chess.com"]
[Date "2021.02.02"]
[Round "7"]
[White "mikolka1985"]
[Black "BlueWizzard"]
[Result "1-0"]
[WhiteElo "2582"]
[BlackElo "2751"]
[TimeControl "180+1"]
[EndTime "11:20:11 PST"]
[Termination "mikolka1985 won by resignation"]

1. d4 {[%clk 0:03:00.6]} 1... a6 {[%clk 0:03:00.9]} 2. Nf3 {[%clk 0:02:46.6]}
2... d6 {[%clk 0:03:00.3]} 3. e4 {[%clk 0:02:42]} 3... b5 {[%clk 0:03:00.1]} 4.
Bd3 {[%clk 0:02:40.3]} 4... Bb7 {[%clk 0:03:00.7]} 5. O-O {[%clk 0:02:40.3]}
5... Nd7 {[%clk 0:02:59.9]} 6. Re1 {[%clk 0:02:39.4]} 6... e6 {[%clk 0:02:59.5]}
7. Nbd2 {[%clk 0:02:39]} 7... Ne7 {[%clk 0:02:58.9]} 8. c3 {[%clk 0:02:38.8]}
8... h6 {[%clk 0:02:59.4]} 9. Nf1 {[%clk 0:02:38.4]} 9... g6 {[%clk 0:02:58.9]}
10. Bd2 {[%clk 0:02:37.1]} 10... Nb6 {[%clk 0:02:58.9]} 11. b3 {[%clk
0:02:34.2]} 11... c5 {[%clk 0:02:57.6]} 12. a4 {[%clk 0:02:31.5]} 12... c4
{[%clk 0:02:52.8]} 13. bxc4 {[%clk 0:02:30.6]} 13... Nxc4 {[%clk 0:02:50.8]} 14.
axb5 {[%clk 0:02:25.4]} 14... axb5 {[%clk 0:02:48.3]} 15. Qb3 {[%clk 0:02:25.4]}
15... Qd7 {[%clk 0:02:30.4]} 16. Rxa8+ {[%clk 0:02:21.6]} 16... Bxa8 {[%clk
0:02:31.3]} 17. Ra1 {[%clk 0:02:19.4]} 17... Bc6 {[%clk 0:02:27.8]} 18. d5
{[%clk 0:02:08.1]} 18... exd5 {[%clk 0:02:27.3]} 19. Nd4 {[%clk 0:02:07.6]}
19... Bg7 {[%clk 0:02:25.2]} 20. Nxc6 {[%clk 0:01:52.6]} 20... Qxc6 {[%clk
0:02:16.6]} 21. exd5 {[%clk 0:01:49.1]} 21... Qxd5 {[%clk 0:02:13.1]} 22. Bxc4
{[%clk 0:01:48.7]} 22... Qxc4 {[%clk 0:02:07.3]} 23. Ra8+ {[%clk 0:01:48.1]}
23... Kd7 {[%clk 0:02:07.5]} 24. Ra7+ {[%clk 0:01:48.3]} 24... Ke6 {[%clk
0:02:03.8]} 25. Qd1 {[%clk 0:01:45.8]} 25... Be5 {[%clk 0:01:38.7]} 26. Qe1
{[%clk 0:01:31.9]} 26... g5 {[%clk 0:01:33.6]} 27. Ne3 {[%clk 0:01:12.8]} 27...
Qc5 {[%clk 0:01:33.4]} 28. Ra6 {[%clk 0:01:11.9]} 28... Kf6 {[%clk 0:01:17.5]}
29. h4 {[%clk 0:00:41.3]} 29... Kg7 {[%clk 0:01:10.1]} 30. Qe2 {[%clk
0:00:40.4]} 30... Bf4 {[%clk 0:01:00.1]} 31. g3 {[%clk 0:00:34.7]} 31... Be5
{[%clk 0:00:55.7]} 32. Qg4 {[%clk 0:00:32.8]} 32... Bf6 {[%clk 0:00:51.4]} 33.
h5 {[%clk 0:00:26.9]} 33... Rc8 {[%clk 0:00:45]} 34. Qe4 {[%clk 0:00:20.6]}
34... Rc7 {[%clk 0:00:38.4]} 35. Qd3 {[%clk 0:00:18.6]} 35... d5 {[%clk
0:00:31.8]} 36. Ng4 {[%clk 0:00:17.4]} 36... Rc6 {[%clk 0:00:31.3]} 37. Ra8
{[%clk 0:00:12.6]} 37... Qc4 {[%clk 0:00:28.4]} 38. Qf3 {[%clk 0:00:11.8]} 38...
Qe4 {[%clk 0:00:28.7]} 39. Qd1 {[%clk 0:00:11.2]} 39... Nf5 {[%clk 0:00:27.6]}
40. Nxf6 {[%clk 0:00:10.3]} 40... Rxf6 {[%clk 0:00:28.2]} 41. Bc1 {[%clk
0:00:08.3]} 41... g4 {[%clk 0:00:23.8]} 42. Bb2 {[%clk 0:00:07.7]} 42... Re6
{[%clk 0:00:21.9]} 43. c4+ {[%clk 0:00:07.5]} 43... d4 {[%clk 0:00:22.5]} 44.
cxb5 {[%clk 0:00:07.5]} 44... Qe1+ {[%clk 0:00:22.3]} 45. Qxe1 {[%clk
0:00:07.1]} 45... Rxe1+ {[%clk 0:00:23.2]} 46. Kg2 {[%clk 0:00:07.6]} 46... Rb1
{[%clk 0:00:23.3]} 47. Ra2 {[%clk 0:00:05.5]} 47... Kf8 {[%clk 0:00:20]} 48. b6
{[%clk 0:00:05.5]} 48... Ne7 {[%clk 0:00:18.1]} 49. b7 {[%clk 0:00:05.3]} 49...
Nc6 {[%clk 0:00:18.5]} 50. Ra8+ {[%clk 0:00:04.5]} 50... Ke7 {[%clk 0:00:18.8]}
51. b8=Q {[%clk 0:00:05.4]} 51... Nxb8 {[%clk 0:00:18.8]} 52. Rxb8 {[%clk
0:00:05.3]} 52... Ke6 {[%clk 0:00:19.4]} 53. Rb6+ {[%clk 0:00:05.1]} 53... Kf5
{[%clk 0:00:19.6]} 54. Bxd4 {[%clk 0:00:05.5]} 54... Rd1 {[%clk 0:00:20.2]} 55.
Be3 {[%clk 0:00:05.6]} 55... Rd5 {[%clk 0:00:20.1]} 56. Rxh6 {[%clk 0:00:05.3]}
56... f6 {[%clk 0:00:20.8]} 57. Rh8 {[%clk 0:00:05.8]} 57... Rd7 {[%clk
0:00:21]} 58. h6 {[%clk 0:00:06.6]} 58... Kg6 {[%clk 0:00:21.3]} 59. Rg8+ {[%clk
0:00:06.6]} 59... Kh5 {[%clk 0:00:17.6]} 60. Rg7 {[%clk 0:00:06.8]} 60... Rd8
{[%clk 0:00:18.1]} 61. h7 {[%clk 0:00:07]} 61... Rh8 {[%clk 0:00:19]} 62. Bf4
{[%clk 0:00:05.3]} 62... Rb8 {[%clk 0:00:14]} 1-0

[Event "*** Titled Tuesday Blitz"]
[Site "Chess.com"]
[Date "2021.02.02"]
[Round "7"]
[White "anon132639"]
[Black "TregubovP"]
[Result "1-0"]
[WhiteElo "2811"]
[BlackElo "2598"]
[TimeControl "180+1"]
[EndTime "11:20:12 PST"]
[Termination "anon132639 won by resignation"]

1. Nf3 {[%clk 0:03:00.2]} 1... c5 {[%clk 0:02:43.8]} 2. e4 {[%clk 0:02:57.4]}
2... e6 {[%clk 0:02:40.5]} 3. c3 {[%clk 0:02:47.5]} 3... d5 {[%clk 0:02:39]} 4.
exd5 {[%clk 0:02:47.3]} 4... exd5 {[%clk 0:02:38.2]} 5. d4 {[%clk 0:02:48.2]}
5... Nf6 {[%clk 0:02:37.9]} 6. Be3 {[%clk 0:02:48.1]} 6... Nbd7 {[%clk
0:02:37.8]} 7. Nbd2 {[%clk 0:02:41.1]} 7... Be7 {[%clk 0:02:37.5]} 8. Bd3 {[%clk
0:02:33.4]} 8... O-O {[%clk 0:02:37.6]} 9. O-O {[%clk 0:02:33.6]} 9... c4 {[%clk
0:02:33.4]} 10. Bc2 {[%clk 0:02:33.8]} 10... b5 {[%clk 0:02:33.8]} 11. a3 {[%clk
0:02:31.1]} 11... a5 {[%clk 0:02:31.5]} 12. h3 {[%clk 0:02:19.5]} 12... Bb7
{[%clk 0:02:31.5]} 13. Nh4 {[%clk 0:02:05]} 13... g6 {[%clk 0:02:30.6]} 14. Bh6
{[%clk 0:02:04.2]} 14... Re8 {[%clk 0:02:30.2]} 15. Qf3 {[%clk 0:01:42.4]} 15...
Ne4 {[%clk 0:02:15.9]} 16. Nf5 {[%clk 0:01:30]} 16... Bg5 {[%clk 0:02:06.4]} 17.
Nxe4 {[%clk 0:01:09]} 17... dxe4 {[%clk 0:02:02.5]} 18. Qg3 {[%clk 0:01:09.5]}
18... Bxh6 {[%clk 0:01:56.7]} 19. Nxh6+ {[%clk 0:01:10.4]} 19... Kf8 {[%clk
0:01:54.3]} 20. Ng4 {[%clk 0:00:34.3]} 20... f5 {[%clk 0:01:47.4]} 21. Ne3
{[%clk 0:00:32.8]} 21... Nf6 {[%clk 0:01:37.9]} 22. Rae1 {[%clk 0:00:18.1]}
22... Nh5 {[%clk 0:01:33.7]} 23. Qh2 {[%clk 0:00:18.5]} 23... Qb8 {[%clk
0:01:27.3]} 24. Qxb8 {[%clk 0:00:18.1]} 24... Raxb8 {[%clk 0:01:27.4]} 25. g3
{[%clk 0:00:18.4]} 25... Kg7 {[%clk 0:01:20.6]} 26. Bd1 {[%clk 0:00:14.9]} 26...
Nf6 {[%clk 0:01:18.7]} 27. Be2 {[%clk 0:00:12.9]} 27... Bd5 {[%clk 0:01:12.5]}
28. Ra1 {[%clk 0:00:10.9]} 28... Rec8 {[%clk 0:01:08.2]} 29. Kh2 {[%clk
0:00:06.4]} 29... Be6 {[%clk 0:01:07.4]} 30. f4 {[%clk 0:00:06]} 30... Nd5
{[%clk 0:01:04.5]} 31. Nxd5 {[%clk 0:00:04.4]} 31... Bxd5 {[%clk 0:01:04.8]} 32.
g4 {[%clk 0:00:05.2]} 32... Kf6 {[%clk 0:01:03.3]} 33. Kg3 {[%clk 0:00:04.6]}
33... Rc7 {[%clk 0:01:02.9]} 34. Kf2 {[%clk 0:00:05]} 34... Rb6 {[%clk
0:00:57.5]} 35. Ke3 {[%clk 0:00:05.3]} 35... b4 {[%clk 0:00:58]} 36. axb4 {[%clk
0:00:06.2]} 36... axb4 {[%clk 0:00:58.4]} 37. Ra5 {[%clk 0:00:06.5]} 37... Be6
{[%clk 0:00:56.7]} 38. d5 {[%clk 0:00:06]} 38... Bf7 {[%clk 0:00:56.9]} 39. Kd4
{[%clk 0:00:06.2]} 39... bxc3 {[%clk 0:00:56.1]} 40. bxc3 {[%clk 0:00:07.1]}
40... Rb2 {[%clk 0:00:56.3]} 41. Bxc4 {[%clk 0:00:06.4]} 41... Rd2+ {[%clk
0:00:56.5]} 42. Ke3 {[%clk 0:00:07]} 42... Rc2 {[%clk 0:00:56.8]} 43. Kd4 {[%clk
0:00:06.9]} 43... Rd2+ {[%clk 0:00:54]} 44. Ke3 {[%clk 0:00:07.1]} 44... Rh2
{[%clk 0:00:54.6]} 45. g5+ {[%clk 0:00:07.5]} 45... Kg7 {[%clk 0:00:54.1]} 46.
Kd4 {[%clk 0:00:04.8]} 46... Rxh3 {[%clk 0:00:48.4]} 47. Rfa1 {[%clk 0:00:05.3]}
47... Rf3 {[%clk 0:00:45.1]} 48. Ra7 {[%clk 0:00:05.3]} 48... Rxa7 {[%clk
0:00:40.1]} 49. Rxa7 {[%clk 0:00:06.2]} 49... Kf8 {[%clk 0:00:40.4]} 50. d6
{[%clk 0:00:04.5]} 50... Bxc4 {[%clk 0:00:39.8]} 51. Kxc4 {[%clk 0:00:05.4]}
51... Rd3 {[%clk 0:00:39.4]} 52. Kc5 {[%clk 0:00:04.8]} 52... Rxc3+ {[%clk
0:00:37.3]} 53. Kd5 {[%clk 0:00:05.4]} 53... e3 {[%clk 0:00:36]} 54. Ke6 {[%clk
0:00:05.6]} 54... Rc8 {[%clk 0:00:34.7]} 55. Rf7+ {[%clk 0:00:04.9]} 55... Kg8
{[%clk 0:00:33.3]} 56. Re7 {[%clk 0:00:03.7]} 56... e2 {[%clk 0:00:32.1]} 57.
Kd5 {[%clk 0:00:03.6]} 57... Kf8 {[%clk 0:00:31.6]} 58. Rxe2 {[%clk 0:00:04]}
58... Rc1 {[%clk 0:00:32]} 59. d7 {[%clk 0:00:04]} 59... Rd1+ {[%clk 0:00:29.8]}
60. Ke6 {[%clk 0:00:04.5]} 60... Rd4 {[%clk 0:00:26.7]} 61. Re3 {[%clk
0:00:04.8]} 61... h5 {[%clk 0:00:25.3]} 62. gxh6 {[%clk 0:00:04.8]} 62... Kg8
{[%clk 0:00:25.7]} 63. Ke7 {[%clk 0:00:04.6]} 63... Kh7 {[%clk 0:00:25.8]} 64.
d8=Q {[%clk 0:00:05]} 1-0

[Event "*** Titled Tuesday Blitz"]
[Site "Chess.com"]
[Date "2021.02.02"]
[Round "7"]
[White "TimofeevAr"]
[Black "Vanina1989"]
[Result "1-0"]
[WhiteElo "2872"]
[BlackElo "2698"]
[TimeControl "180+1"]
[EndTime "11:20:17 PST"]
[Termination "TimofeevAr won on time"]

1. e4 {[%clk 0:03:00.9]} 1... c6 {[%clk 0:02:59.8]} 2. Nf3 {[%clk 0:02:59]} 2...
d5 {[%clk 0:02:59.9]} 3. d3 {[%clk 0:02:59.4]} 3... Bg4 {[%clk 0:02:57.6]} 4.
Nbd2 {[%clk 0:02:56.8]} 4... e6 {[%clk 0:02:56.6]} 5. c3 {[%clk 0:02:49.3]} 5...
dxe4 {[%clk 0:02:49]} 6. Nxe4 {[%clk 0:02:44]} 6... Nd7 {[%clk 0:02:43.6]} 7. h3
{[%clk 0:02:43.5]} 7... Bh5 {[%clk 0:02:39.4]} 8. Be2 {[%clk 0:02:39.6]} 8...
Ngf6 {[%clk 0:02:34.6]} 9. O-O {[%clk 0:02:31.6]} 9... Nxe4 {[%clk 0:02:33.8]}
10. dxe4 {[%clk 0:02:31.8]} 10... Qc7 {[%clk 0:02:34]} 11. Be3 {[%clk
0:02:27.5]} 11... Be7 {[%clk 0:02:22.3]} 12. Nd2 {[%clk 0:02:16.8]} 12... Bg6
{[%clk 0:02:04]} 13. f4 {[%clk 0:02:15.3]} 13... f6 {[%clk 0:02:04]} 14. Bh5
{[%clk 0:02:08.9]} 14... O-O-O {[%clk 0:01:59.2]} 15. Bxg6 {[%clk 0:02:01.7]}
15... hxg6 {[%clk 0:01:58.8]} 16. Qg4 {[%clk 0:02:02.1]} 16... Nf8 {[%clk
0:01:46.8]} 17. Rad1 {[%clk 0:01:59]} 17... Qa5 {[%clk 0:01:26.4]} 18. a3 {[%clk
0:01:33.7]} 18... Qb5 {[%clk 0:01:26.1]} 19. b4 {[%clk 0:01:29.7]} 19... Qa6
{[%clk 0:01:25.8]} 20. Bd4 {[%clk 0:01:18]} 20... Kb8 {[%clk 0:00:57.9]} 21. a4
{[%clk 0:01:17.2]} 21... Bxb4 {[%clk 0:00:46.6]} 22. Nf3 {[%clk 0:01:17.2]}
22... Be7 {[%clk 0:00:44.2]} 23. Rb1 {[%clk 0:01:16.7]} 23... c5 {[%clk
0:00:43.9]} 24. Bf2 {[%clk 0:01:16]} 24... Qxa4 {[%clk 0:00:43.9]} 25. f5 {[%clk
0:01:14.4]} 25... gxf5 {[%clk 0:00:42.5]} 26. Qxg7 {[%clk 0:01:09.3]} 26... Rh7
{[%clk 0:00:39.5]} 27. Qg3+ {[%clk 0:01:09.1]} 27... Bd6 {[%clk 0:00:37.3]} 28.
e5 {[%clk 0:01:09.4]} 28... fxe5 {[%clk 0:00:34.7]} 29. Nxe5 {[%clk 0:01:09.7]}
29... f4 {[%clk 0:00:34.7]} 30. Qg5 {[%clk 0:01:09.1]} 30... Rc8 {[%clk
0:00:24.6]} 31. Rfd1 {[%clk 0:01:04.4]} 31... Be7 {[%clk 0:00:21.1]} 32. Qg4
{[%clk 0:01:01.6]} 32... Bf6 {[%clk 0:00:20.9]} 33. Qe2 {[%clk 0:00:56.6]} 33...
Rg7 {[%clk 0:00:18.6]} 34. Ng4 {[%clk 0:00:55.4]} 34... Bxc3 {[%clk 0:00:18]}
35. Qf3 {[%clk 0:00:53.5]} 35... Bd4 {[%clk 0:00:17.5]} 36. Qxf4+ {[%clk
0:00:52.7]} 36... Ka8 {[%clk 0:00:15.5]} 37. Bxd4 {[%clk 0:00:47.7]} 37... cxd4
{[%clk 0:00:15.6]} 38. Rxd4 {[%clk 0:00:47.9]} 38... Qc2 {[%clk 0:00:15.8]} 39.
Ra1 {[%clk 0:00:46.1]} 39... Qc5 {[%clk 0:00:15]} 40. Kh1 {[%clk 0:00:43.8]}
40... Ng6 {[%clk 0:00:15.1]} 41. Qd2 {[%clk 0:00:41]} 41... e5 {[%clk
0:00:14.1]} 42. Rda4 {[%clk 0:00:37.4]} 42... a6 {[%clk 0:00:14.3]} 43. Qe2
{[%clk 0:00:34.1]} 43... Rc6 {[%clk 0:00:10.4]} 44. Qe4 {[%clk 0:00:32.6]} 44...
Rd7 {[%clk 0:00:09.2]} 45. Kh2 {[%clk 0:00:24.6]} 45... Kb8 {[%clk 0:00:08.4]}
46. R4a2 {[%clk 0:00:23.5]} 46... Rd4 {[%clk 0:00:07.8]} 47. Qf5 {[%clk
0:00:23.8]} 47... Rf4 {[%clk 0:00:07]} 48. Qg5 {[%clk 0:00:23.4]} 48... Qd6
{[%clk 0:00:06.3]} 49. Ne3 {[%clk 0:00:19.4]} 49... e4 {[%clk 0:00:05.1]} 50.
Qg3 {[%clk 0:00:19.6]} 50... Rc3 {[%clk 0:00:04.6]} 51. Re1 {[%clk 0:00:17.6]}
51... Rd3 {[%clk 0:00:04.7]} 52. Rae2 {[%clk 0:00:16.7]} 52... Ka8 {[%clk
0:00:04.4]} 53. Rd1 {[%clk 0:00:10.5]} 53... Nh4 {[%clk 0:00:04.3]} 54. Rxd3
{[%clk 0:00:07.6]} 54... exd3 {[%clk 0:00:04.3]} 55. Rd2 {[%clk 0:00:08]} 55...
Ng6 {[%clk 0:00:02.8]} 56. Nc4 {[%clk 0:00:06.9]} 56... Qc7 {[%clk 0:00:01.6]}
57. Qxg6 {[%clk 0:00:03.9]} 1-0

[Event "*** Titled Tuesday Blitz"]
[Site "Chess.com"]
[Date "2021.02.02"]
[Round "7"]
[White "Paralinch"]
[Black "Chopper1905"]
[Result "0-1"]
[WhiteElo "2899"]
[BlackElo "2942"]
[TimeControl "180+1"]
[EndTime "11:20:18 PST"]
[Termination "Chopper1905 won on time"]

1. e4 {[%clk 0:03:00.9]} 1... c5 {[%clk 0:02:59.7]} 2. Nf3 {[%clk 0:03:00.7]}
2... d6 {[%clk 0:03:00.1]} 3. c3 {[%clk 0:03:00.9]} 3... Nf6 {[%clk 0:03:00.1]}
4. h3 {[%clk 0:03:01.5]} 4... g6 {[%clk 0:02:59.9]} 5. Bd3 {[%clk 0:03:01]} 5...
Bg7 {[%clk 0:03:00.1]} 6. Bc2 {[%clk 0:03:01.3]} 6... e5 {[%clk 0:03:00.6]} 7.
O-O {[%clk 0:03:00.1]} 7... O-O {[%clk 0:03:01]} 8. d4 {[%clk 0:02:59.3]} 8...
exd4 {[%clk 0:03:01]} 9. cxd4 {[%clk 0:03:00.2]} 9... Nc6 {[%clk 0:03:00.8]} 10.
Nc3 {[%clk 0:02:59.2]} 10... cxd4 {[%clk 0:02:45.2]} 11. Nxd4 {[%clk 0:02:59.5]}
11... d5 {[%clk 0:02:37.6]} 12. Nxc6 {[%clk 0:02:51.8]} 12... bxc6 {[%clk
0:02:37.6]} 13. Bg5 {[%clk 0:02:52.4]} 13... h6 {[%clk 0:02:11.7]} 14. Be3
{[%clk 0:02:51.8]} 14... Ba6 {[%clk 0:01:58.8]} 15. Re1 {[%clk 0:02:50.1]} 15...
Re8 {[%clk 0:01:42.2]} 16. exd5 {[%clk 0:02:14]} 16... Nxd5 {[%clk 0:01:43.1]}
17. Nxd5 {[%clk 0:02:10.6]} 17... cxd5 {[%clk 0:01:39.5]} 18. Qd2 {[%clk
0:02:10.4]} 18... Rc8 {[%clk 0:01:21.5]} 19. Bb3 {[%clk 0:02:06.9]} 19... Bc4
{[%clk 0:00:32.3]} 20. Bxh6 {[%clk 0:01:58.9]} 20... Bxh6 {[%clk 0:00:32.5]} 21.
Qxh6 {[%clk 0:01:57.4]} 21... Bxb3 {[%clk 0:00:32.8]} 22. axb3 {[%clk
0:01:57.1]} 22... Qb6 {[%clk 0:00:32.7]} 23. h4 {[%clk 0:01:27.2]} 23... Qxb3
{[%clk 0:00:24.2]} 24. h5 {[%clk 0:01:26.5]} 24... Rxe1+ {[%clk 0:00:17.6]} 25.
Rxe1 {[%clk 0:01:27.4]} 25... Qb6 {[%clk 0:00:18]} 26. Re3 {[%clk 0:01:00.4]}
26... Rc1+ {[%clk 0:00:14.4]} 27. Kh2 {[%clk 0:01:00.8]} 27... Qb8+ {[%clk
0:00:14.6]} 28. Rg3 {[%clk 0:00:56.5]} 28... Rc6 {[%clk 0:00:14.7]} 29. f4
{[%clk 0:00:54.1]} 29... Qe8 {[%clk 0:00:12.2]} 30. f5 {[%clk 0:00:47.2]} 30...
Qe5 {[%clk 0:00:12.3]} 31. hxg6 {[%clk 0:00:43.1]} 31... fxg6 {[%clk 0:00:12.8]}
32. fxg6 {[%clk 0:00:41.3]} 32... Qh8 {[%clk 0:00:13.3]} 33. Qxh8+ {[%clk
0:00:27.4]} 33... Kxh8 {[%clk 0:00:14.2]} 34. Rd3 {[%clk 0:00:27.3]} 34... Rb6
{[%clk 0:00:12.7]} 35. b3 {[%clk 0:00:13.5]} 35... Kg7 {[%clk 0:00:11.7]} 36.
Kg3 {[%clk 0:00:09.1]} 36... Kxg6 {[%clk 0:00:11]} 37. Kf4 {[%clk 0:00:09.6]}
37... Kf6 {[%clk 0:00:10.1]} 38. g4 {[%clk 0:00:05.8]} 38... Rb4+ {[%clk
0:00:10.2]} 39. Kg3 {[%clk 0:00:06.2]} 39... Ke5 {[%clk 0:00:10.6]} 40. Kh4
{[%clk 0:00:06.2]} 40... Ke4 {[%clk 0:00:09.1]} 41. Rd1 {[%clk 0:00:06.6]} 41...
Rxb3 {[%clk 0:00:09.2]} 42. Ra1 {[%clk 0:00:06]} 42... Rb7 {[%clk 0:00:08]} 43.
g5 {[%clk 0:00:06.4]} 43... d4 {[%clk 0:00:08.5]} 44. g6 {[%clk 0:00:07]} 44...
d3 {[%clk 0:00:08.2]} 45. Kg5 {[%clk 0:00:06.2]} 45... Ke3 {[%clk 0:00:08.5]}
46. Kf5 {[%clk 0:00:06.8]} 46... d2 {[%clk 0:00:07.8]} 47. Kf6 {[%clk
0:00:04.1]} 47... Ke2 {[%clk 0:00:07.2]} 48. g7 {[%clk 0:00:03.9]} 48... Rb8
{[%clk 0:00:03.1]} 49. Ra2 {[%clk 0:00:01.1]} 49... Ke1 {[%clk 0:00:03.4]} 50.
Rxa7 {[%clk 0:00:01.2]} 50... d1=Q {[%clk 0:00:03.5]} 51. Re7+ {[%clk
0:00:02.1]} 51... Kf2 {[%clk 0:00:03.5]} 52. Kf7 {[%clk 0:00:03]} 52... Qf3+
{[%clk 0:00:04]} 53. Kg6 {[%clk 0:00:03.1]} 53... Qg4+ {[%clk 0:00:04.5]} 54.
Kh7 {[%clk 0:00:03.5]} 54... Qh4+ {[%clk 0:00:04.9]} 0-1